bitfinex/quotes_BTCUSD_20240831
["timestamp","ask_amount","ask_price","bid_price","bid_amount"]
[1725073246915,0.02715575,59385.0,59384.0,1.38372615]
[1725073247119,0.02715575,59385.0,59384.0,1.39772615]
[1725073247524,0.02715575,59385.0,59384.0,1.38372615]
[1725073247903,0.02715575,59385.0,59384.0,1.39772615]
[1725073255543,0.02715575,59385.0,59384.0,2.07297163]
[1725073256394,0.235703,59397.0,59389.0,0.23573]
[1725073256602,0.117856,59395.0,59394.0,0.07583236]
[1725073256811,0.217856,59395.0,59392.0,0.07583236]
[1725073257020,0.217856,59395.0,59392.0,0.19369236]
[1725073257021,0.1,59394.0,59392.0,0.19369236]
[1725073257308,0.1,59394.0,59393.0,0.03897208]
[1725073258612,0.1,59394.0,59393.0,0.12780444]
[1725073259688,0.1,59394.0,59393.0,0.12782901]
[1725073260343,0.1,59394.0,59393.0,0.14082901]
[1725073260559,0.1,59394.0,59393.0,0.10185693]
[1725073260768,0.12641936,59394.0,59393.0,0.10185693]
[1725073261209,0.1,59394.0,59393.0,0.10185693]
[1725073261641,0.0826644,59397.0,59393.0,0.026]
[1725073261857,0.35356,59396.0,59395.0,0.05056493]
[1725073262783,0.35356,59396.0,59394.0,0.03375859]
[1725073262995,0.35356,59396.0,59395.0,0.05056159]
[1725073263218,0.35356,59396.0,59394.0,0.03375859]
[1725073263439,0.35356,59396.0,59395.0,0.06792534]
[1725073263659,0.45356,59396.0,59395.0,0.06056328]
[1725073263876,0.45356,59396.0,59395.0,0.0716491]
[1725073264092,0.45356,59396.0,59395.0,0.0616491]
[1725073264299,0.45356,59396.0,59395.0,0.0716491]
[1725073266506,0.45356,59396.0,59395.0,0.03108582]
[1725073267396,0.454378,59396.0,59395.0,0.03108582]
[1725073267878,0.690085,59396.0,59395.0,0.08165573]
[1725073268088,0.961992,59396.0,59395.0,0.03108582]
[1725073268270,0.961992,59396.0,59395.0,0.02]
[1725073270485,0.961992,59396.0,59395.0,0.01]
[1725073270687,0.589312,59391.0,59390.0,0.05058251]
[1725073270896,0.353593,59390.0,59389.0,0.05058251]
[1725073271098,0.5362574,59390.0,59389.0,0.05058251]
[1725073271566,0.7719864,59390.0,59389.0,0.44998143]
[1725073272197,0.7719864,59390.0,59389.0,0.46398143]
[1725073272643,0.7719864,59390.0,59389.0,0.47798143]
[1725073273058,0.7719864,59390.0,59389.0,0.40210766]
[1725073274419,0.689322,59390.0,59389.0,0.40210766]
[1725073277434,0.689322,59390.0,59389.0,0.50327269]
[1725073278378,0.689322,59390.0,59389.0,0.5032289]
[1725073278816,0.689322,59390.0,59389.0,0.5041287]
[1725073282609,0.689322,59390.0,59389.0,0.40299445]
[1725073283282,0.689322,59390.0,59389.0,0.40299446]
[1725073283896,0.7719864,59390.0,59389.0,0.40299446]
[1725073286032,0.7719864,59390.0,59389.0,0.41410847]
[1725073288394,0.7719864,59390.0,59389.0,0.4141015]
[1725073292277,0.7719864,59390.0,59389.0,0.3861015]
[1725073292699,0.7719864,59390.0,59389.0,0.3981015]
[1725073293610,0.7719864,59390.0,59389.0,0.4101015]
[1725073296126,0.78155433,59390.0,59389.0,0.4101015]
[1725073298507,0.78155433,59390.0,59389.0,0.41010381]
[1725073299386,5.36831433,59390.0,59389.0,0.48596176]
[1725073299674,5.70501977,59390.0,59389.0,0.03601381]
[1725073299892,4.87996877,59390.0,59384.0,0.0008998]
[1725073300124,0.858821,59385.0,59384.0,0.0008998]
[1725073300349,5.309852,59385.0,59384.0,0.0008998]
[1725073300571,5.568601,59385.0,59384.0,0.0008998]
[1725073301032,5.59502569,59385.0,59384.0,0.0008998]
[1725073301285,5.74335233,59385.0,59384.0,0.0008998]
[1725073301727,5.59502569,59385.0,59384.0,0.0008998]
[1725073302357,5.59602569,59385.0,59384.0,0.0008998]
[1725073302537,5.59802569,59385.0,59384.0,0.0008998]
[1725073304803,5.59702569,59385.0,59384.0,0.0008998]
[1725073305020,5.59902569,59385.0,59384.0,0.0008998]
[1725073305464,5.59702569,59385.0,59384.0,0.0008998]
[1725073305673,5.76557733,59385.0,59384.0,0.0008998]
[1725073305862,5.76857733,59385.0,59384.0,0.0008998]
[1725073306730,5.60002569,59385.0,59384.0,0.0008998]
[1725073306947,5.68269009,59385.0,59384.0,0.0008998]
[1725073311189,5.56481609,59385.0,59384.0,0.0008998]
[1725073311425,5.68269009,59385.0,59384.0,0.0008998]
[1725073317832,5.44694109,59385.0,59384.0,0.0008998]
[1725073318282,5.68269009,59385.0,59384.0,0.0008998]
[1725073318513,5.70033532,59385.0,59384.0,0.0008998]
[1725073319624,5.66663532,59385.0,59384.0,0.0008998]
[1725073320976,1.31560432,59385.0,59384.0,0.0008998]
[1725073321212,5.66663532,59385.0,59384.0,0.0008998]
[1725073326642,5.66745332,59385.0,59384.0,0.0008998]
[1725073330435,5.66860931,59385.0,59384.0,0.0008998]
[1725073342982,5.98253079,59385.0,59384.0,0.0008998]
[1725073343206,5.98253079,59385.0,59372.0,0.0008998]
[1725073343207,0.117898,59373.0,59372.0,0.0008998]
[1725073343455,0.825289,59373.0,59372.0,0.0008998]
[1725073343673,1.184086,59373.0,59372.0,0.0008998]
[1725073343896,5.535117,59373.0,59372.0,0.0008998]
[1725073344140,5.57917793,59373.0,59372.0,0.0008998]
[1725073344361,5.57917793,59373.0,59372.0,0.0018998]
[1725073344577,5.57917793,59373.0,59362.0,0.05055305]
[1725073344578,0.117918,59363.0,59362.0,0.18075305]
[1725073344808,0.117918,59363.0,59362.0,0.1302]
[1725073344809,0.7722564,59363.0,59362.0,0.1302]
[1725073345046,1.0080934,59363.0,59362.0,0.14144094]
[1725073345294,1.03452402,59363.0,59362.0,0.14144094]
[1725073347373,1.03452402,59363.0,59362.0,0.1302]
[1725073347594,1.03452402,59363.0,59362.0,0.1402]
[1725073347824,1.03452402,59363.0,59362.0,0.1352]
[1725073348076,1.03452402,59363.0,59362.0,0.1302]
[1725073348299,1.03452402,59363.0,59362.0,0.1322]
[1725073349449,1.03452402,59363.0,59362.0,0.1352]
[1725073350324,1.03452402,59363.0,59362.0,0.1360998]
[1725073350976,0.91660602,59363.0,59362.0,0.1360998]
[1725073351426,1.03452402,59363.0,59362.0,0.1360998]
[1725073353426,1.03452402,59363.0,59362.0,0.1310998]
[1725073357650,1.03452402,59363.0,59362.0,0.1280998]
[1725073358097,1.03452402,59363.0,59362.0,0.1290998]
[1725073358315,1.03452402,59363.0,59362.0,0.1320998]
[1725073359429,1.05215705,59363.0,59362.0,0.1320998]
[1725073362807,0.96949265,59363.0,59362.0,0.1320998]
[1725073363046,1.05215705,59363.0,59362.0,0.1320998]
[1725073363920,1.05215705,59363.0,59362.0,0.1290998]
[1725073364132,1.05215705,59363.0,59362.0,0.1260998]
[1725073364358,1.05215705,59363.0,59362.0,0.1300998]
[1725073364592,1.05215705,59363.0,59362.0,0.1330998]
[1725073370912,0.96949265,59363.0,59362.0,0.1330998]
[1725073371160,1.01167089,59363.0,59362.0,0.1330998]
[1725073371407,0.92900649,59363.0,59362.0,0.14649976]
[1725073371650,1.01167089,59363.0,59362.0,0.14649976]
[1725073372132,1.01167089,59363.0,59362.0,0.1330998]
[1725073373742,1.01248989,59363.0,59362.0,0.1330998]
[1725073379996,0.14488265,59363.0,59362.0,0.1330998]
[1725073380217,0.63447465,59363.0,59362.0,0.1330998]
[1725073380439,0.73447465,59363.0,59362.0,0.01962754]
[1725073380659,5.32134265,59363.0,59362.0,0.0078998]
[1725073381110,5.2656982,59363.0,59362.0,0.0078998]
[1725073381329,5.2656982,59363.0,59362.0,0.0008998]
[1725073381551,5.29212945,59363.0,59362.0,0.0008998]
[1725073381777,5.29212945,59363.0,59362.0,0.0018998]
[1725073382187,5.29212945,59363.0,59362.0,0.0008998]
[1725073382686,5.29212945,59363.0,59362.0,0.0018998]
[1725073383092,5.29212945,59363.0,59362.0,0.0008998]
[1725073383296,5.31512945,59363.0,59362.0,0.0008998]
[1725073384184,5.32112945,59363.0,59362.0,0.0008998]
[1725073384608,5.33611144,59363.0,59362.0,0.0008998]
[1725073384829,5.22895524,59363.0,59362.0,0.0008998]
[1725073385461,5.34687324,59363.0,59362.0,0.0008998]
[1725073385672,5.34769224,59363.0,59362.0,0.0008998]
[1725073386367,1.88566124,59363.0,59362.0,0.0008998]
[1725073386576,1.36266124,59363.0,59362.0,0.1183998]
[1725073386791,1.34166124,59363.0,59362.0,0.1183998]
[1725073387447,1.25866124,59363.0,59362.0,0.1183998]
[1725073387905,1.25266124,59363.0,59362.0,0.1183998]
[1725073388168,1.10766124,59363.0,59362.0,0.1183998]
[1725073388394,1.10266124,59363.0,59362.0,0.1183998]
[1725073388848,1.10666124,59363.0,59362.0,0.1183998]
[1725073389299,1.10266124,59363.0,59362.0,0.1183998]
[1725073389513,1.10566124,59363.0,59362.0,0.1183998]
[1725073389950,1.11066124,59363.0,59362.0,0.1183998]
[1725073390177,1.10566124,59363.0,59362.0,0.1183998]
[1725073390607,1.10766124,59363.0,59362.0,0.1183998]
[1725073391037,1.10466124,59363.0,59362.0,0.1183998]
[1725073391533,1.10666124,59363.0,59362.0,0.1183998]
[1725073395690,1.10666124,59363.0,59362.0,0.13012754]
[1725073396128,1.10666124,59363.0,59362.0,0.1183998]
[1725073396343,1.10666124,59363.0,59362.0,0.13012754]
[1725073396794,1.12229427,59363.0,59362.0,0.13012754]
[1725073397232,1.12129427,59363.0,59362.0,0.13012754]
[1725073397444,1.20395867,59363.0,59362.0,0.13012754]
[1725073397655,1.20495867,59363.0,59362.0,0.13012754]
[1725073398169,1.19497668,59363.0,59362.0,0.13012754]
[1725073399710,0.95913968,59363.0,59362.0,0.13012754]
[1725073400360,0.87983445,59363.0,59362.0,0.13012754]
[1725073400819,0.87983445,59363.0,59362.0,0.13656252]
[1725073401260,0.87983445,59363.0,59362.0,0.14829026]
[1725073403288,0.79717005,59363.0,59362.0,0.14829026]
[1725073403532,0.84942537,59363.0,59362.0,0.13012754]
[1725073405756,0.94942537,59363.0,59362.0,0.13012754]
[1725073405973,0.80942537,59363.0,59362.0,0.13012754]
[1725073406443,1.66542537,59363.0,59362.0,0.13012754]
[1725073406651,1.66542537,59363.0,59362.0,0.1183998]
[1725073411022,1.61998533,59363.0,59362.0,0.1183998]
[1725073411240,1.64641705,59363.0,59362.0,0.1183998]
[1725073413699,1.645659,59363.0,59362.0,0.1183998]
[1725073419935,1.881496,59363.0,59362.0,0.0008998]
[1725073420802,1.882315,59363.0,59362.0,0.0008998]
[1725073421268,1.882315,59363.0,59357.0,0.05064043]
[1725073421269,1.07091512,59363.0,59357.0,0.05064043]
[1725073421494,1.07091512,59363.0,59355.0,0.05154023]
[1725073421495,0.117932,59356.0,59355.0,0.05154023]
[1725073421753,5.299555,59356.0,59355.0,0.0008998]
[1725073421959,5.535419,59356.0,59355.0,0.0008998]
[1725073422190,5.56185358,59356.0,59355.0,0.0008998]
[1725073422406,0.9082024,59355.0,59347.0,0.27774023]
[1725073422649,5.3822334,59355.0,59347.0,0.27774023]
[1725073422894,5.6181014,59355.0,59347.0,0.27774023]
[1725073423366,5.6181014,59355.0,59347.0,0.2270998]
[1725073424297,5.6241014,59355.0,59347.0,0.2270998]
[1725073424501,5.6291014,59355.0,59347.0,0.2270998]
[1725073426653,5.64673443,59355.0,59347.0,0.2270998]
[1725073428806,5.41086643,59355.0,59347.0,0.2270998]
[1725073430206,5.42066801,59355.0,59347.0,0.2270998]
[1725073436532,1.06963701,59355.0,59347.0,0.2270998]
[1725073436762,5.42066801,59355.0,59347.0,0.2270998]
[1725073438820,4.08463701,59355.0,59347.0,0.2270998]
[1725073439053,3.05363701,59355.0,59354.0,0.1273998]
[1725073439779,2.89563701,59355.0,59354.0,0.1273998]
[1725073439973,0.80096743,59355.0,59354.0,0.1273998]
[1725073442123,0.56509943,59355.0,59354.0,0.1273998]
[1725073442377,0.02863303,59355.0,59354.0,0.2453358]
[1725073442625,0.02863303,59355.0,59354.0,0.34903816]
[1725073442837,0.02863303,59355.0,59354.0,0.24332395]
[1725073443318,0.02363303,59355.0,59354.0,0.24332395]
[1725073443546,0.02163303,59355.0,59354.0,0.24332395]
[1725073443772,0.02245203,59355.0,59354.0,0.24332395]
[1725073444012,0.01945203,59355.0,59354.0,0.24732395]
[1725073444239,0.11945203,59355.0,59354.0,0.19679606]
[1725073444481,0.11945203,59355.0,59354.0,0.31473206]
[1725073445428,0.12045203,59355.0,59354.0,0.31673206]
[1725073446091,0.12045203,59355.0,59354.0,0.55260406]
[1725073446542,0.02045203,59355.0,59354.0,0.55260406]
[1725073446769,0.02045203,59355.0,59354.0,0.78847606]
[1725073447004,0.02045203,59355.0,59354.0,0.55260406]
[1725073447230,0.02045203,59355.0,59354.0,0.6283959]
[1725073447920,0.02045203,59355.0,59354.0,1.00270314]
[1725073448138,0.02045203,59355.0,59354.0,0.9269113]
[1725073449482,0.01945203,59355.0,59354.0,0.9249113]
[1725073449707,0.01845203,59355.0,59354.0,0.9209113]
[1725073449926,0.02045203,59355.0,59354.0,0.9279113]
[1725073451233,0.02045203,59355.0,59354.0,1.1637833]
[1725073454569,0.02045203,59355.0,59354.0,1.16377591]
[1725073455496,0.10311643,59355.0,59354.0,0.52092144]
[1725073455722,0.10311643,59355.0,59354.0,0.5966862]
[1725073456409,0.10211643,59355.0,59354.0,0.5946862]
[1725073456598,0.10211643,59355.0,59354.0,0.51892144]
[1725073456852,0.10211643,59355.0,59354.0,0.59968586]
[1725073457099,0.10311643,59355.0,59354.0,0.61068586]
[1725073457308,0.1,59360.0,59354.0,0.16062159]
[1725073457528,0.117931,59357.0,59355.0,0.05051033]
[1725073457746,0.0826644,59356.0,59355.0,0.05051033]
[1725073458425,0.0826644,59356.0,59355.0,0.04951033]
[1725073459571,0.0826644,59356.0,59355.0,0.05851033]
[1725073459794,0.0836644,59356.0,59355.0,0.05951033]
[1725073460270,0.0846644,59356.0,59355.0,0.06951033]
[1725073464667,0.0846644,59356.0,59355.0,0.02]
[1725073465796,0.0846644,59356.0,59355.0,0.03221709]
[1725073468521,0.0846644,59356.0,59355.0,0.10799176]
[1725073470047,0.0846644,59356.0,59355.0,0.48229469]
[1725073473343,0.0846644,59356.0,59355.0,0.40652002]
[1725073476234,0.0846644,59356.0,59355.0,0.50759654]
[1725073478416,0.2025964,59356.0,59355.0,0.50759654]
[1725073479270,0.2025964,59356.0,59355.0,0.40652002]
[1725073481321,0.2025964,59356.0,59355.0,0.53296436]
[1725073481971,0.2025964,59356.0,59355.0,0.40652002]
[1725073484259,0.9101884,59356.0,59355.0,0.10817572]
[1725073484414,0.9101884,59356.0,59355.0,0.03221709]
[1725073484841,0.9101884,59356.0,59355.0,0.01221709]
[1725073484842,0.9081884,59356.0,59355.0,0.01221709]
[1725073485265,0.9091884,59356.0,59355.0,0.05864148]
[1725073485470,0.9091884,59356.0,59355.0,0.05064148]
[1725073485682,0.9091884,59356.0,59355.0,0.01221709]
[1725073485899,5.3781514,59356.0,59354.0,0.0008998]
[1725073486115,5.276569,59355.0,59354.0,0.0008998]
[1725073486975,5.049538,59355.0,59354.0,0.0008998]
[1725073487172,1.740538,59355.0,59354.0,0.0008998]
[1725073487414,1.743538,59355.0,59354.0,0.0008998]
[1725073487845,1.741538,59355.0,59354.0,0.0008998]
[1725073488052,1.744538,59355.0,59354.0,0.0008998]
[1725073488268,1.743538,59355.0,59354.0,0.0008998]
[1725073489578,1.744538,59355.0,59354.0,0.0008998]
[1725073498937,1.741538,59355.0,59354.0,0.0008998]
[1725073499367,2.003406,59355.0,59354.0,0.0008998]
[1725073499579,5.563337,59355.0,59354.0,0.0008998]
[1725073500239,5.564337,59355.0,59354.0,0.0008998]
[1725073501916,5.539437,59355.0,59354.0,0.0008998]
[1725073502136,4.845406,59355.0,59354.0,0.0008998]
[1725073502382,3.821406,59355.0,59354.0,0.0008998]
[1725073503492,3.83903903,59355.0,59354.0,0.0008998]
[1725073504167,3.60703903,59355.0,59354.0,0.0008998]
[1725073504374,3.55453426,59355.0,59354.0,0.0008998]
[1725073505242,2.61653426,59355.0,59354.0,0.0008998]
[1725073506332,2.38066626,59355.0,59354.0,0.0008998]
[1725073506567,1.89266626,59355.0,59354.0,0.0008998]
[1725073510266,3.45966626,59355.0,59354.0,0.0008998]
[1725073512544,1.71766626,59355.0,59354.0,0.0008998]
[1725073514483,1.23666626,59355.0,59354.0,0.1230998]
[1725073514704,1.23666626,59355.0,59354.0,0.13540978]
[1725073514931,0.65879826,59355.0,59354.0,0.13540978]
[1725073515148,0.74146266,59355.0,59354.0,0.13540978]
[1725073515619,0.74146266,59355.0,59354.0,0.14572047]
[1725073516065,0.73746266,59355.0,59354.0,0.14572047]
[1725073516278,0.73746266,59355.0,59354.0,0.13741049]
[1725073516469,0.97333066,59355.0,59354.0,0.14241049]
[1725073520688,0.92377518,59355.0,59354.0,0.14241049]
[1725073521087,0.92377518,59355.0,59354.0,0.1320998]
[1725073521896,0.92377518,59355.0,59354.0,0.14241049]
[1725073522774,1.02377518,59355.0,59354.0,0.14241049]
[1725073531340,1.02377518,59355.0,59354.0,0.19304584]
[1725073532628,1.02377518,59355.0,59354.0,0.14241049]
[1725073533630,1.02173659,59355.0,59354.0,0.14241049]
[1725073540182,1.02173659,59355.0,59354.0,0.02021049]
[1725073540183,1.25760459,59355.0,59354.0,0.02021049]
[1725073540617,1.25760459,59355.0,59354.0,0.0098998]
[1725073540618,5.63163559,59355.0,59354.0,0.0098998]
[1725073540838,5.63163559,59355.0,59354.0,0.0048998]
[1725073541804,5.63163559,59355.0,59354.0,0.0008998]
[1725073542021,5.63463559,59355.0,59354.0,0.0008998]
[1725073542477,5.63163559,59355.0,59354.0,0.0008998]
[1725073542919,5.63163559,59355.0,59354.0,0.0018998]
[1725073543360,5.63163559,59355.0,59354.0,0.0008998]
[1725073543586,0.825636,59348.0,59347.0,0.0008998]
[1725073543798,5.3593314,59348.0,59347.0,0.0008998]
[1725073544025,5.3593314,59348.0,59347.0,0.01179009]
[1725073544257,5.3593314,59348.0,59347.0,0.0008998]
[1725073544469,5.62166598,59348.0,59347.0,0.0008998]
[1725073545132,5.62366598,59348.0,59347.0,0.0008998]
[1725073546215,5.62466598,59348.0,59347.0,0.0008998]
[1725073547743,4.63863498,59348.0,59347.0,0.0008998]
[1725073549763,4.72285327,59348.0,59347.0,0.0008998]
[1725073550179,4.66163498,59348.0,59347.0,0.0008998]
[1725073552136,4.67139501,59348.0,59347.0,0.0008998]
[1725073552853,4.67139501,59348.0,59346.0,0.1]
[1725073552854,1.06155,59347.0,59346.0,0.1]
[1725073553069,5.535581,59347.0,59346.0,0.1]
[1725073554183,5.536581,59347.0,59346.0,0.1]
[1725073556128,5.543581,59347.0,59346.0,0.101]
[1725073556552,5.543581,59347.0,59346.0,0.1]
[1725073556771,5.535581,59347.0,59346.0,0.1]
[1725073556986,5.542581,59347.0,59346.0,0.101]
[1725073557590,5.550581,59347.0,59346.0,0.102]
[1725073561049,5.550581,59347.0,59346.0,0.002]
[1725073564353,5.550581,59347.0,59346.0,0.0028998]
[1725073566267,5.786481,59347.0,59346.0,0.0028998]
[1725073567562,5.670531,59347.0,59346.0,0.0028998]
[1725073567802,0.825678,59345.0,59344.0,0.0008998]
[1725073568036,5.5003274,59345.0,59343.0,0.0008998]
[1725073568207,0.353874,59343.0,59342.0,0.0008998]
[1725073568437,5.040821,59343.0,59342.0,0.0008998]
[1725073568646,5.063821,59343.0,59342.0,0.0008998]
[1725073568861,5.31737003,59343.0,59342.0,0.0008998]
[1725073569076,5.79420203,59343.0,59342.0,0.0008998]
[1725073570144,5.79620203,59343.0,59342.0,0.0008998]
[1725073571020,5.79920203,59343.0,59342.0,0.0008998]
[1725073572715,5.96775367,59343.0,59342.0,0.0008998]
[1725073573366,5.96975367,59343.0,59342.0,0.0008998]
[1725073573575,5.80120203,59343.0,59342.0,0.0008998]
[1725073574036,1.061676,59340.0,59339.0,0.1]
[1725073574252,5.6183714,59340.0,59339.0,0.1]
[1725073574910,5.64481508,59340.0,59339.0,0.1]
[1725073575534,5.64481508,59340.0,59339.0,0.101]
[1725073576608,5.64481508,59340.0,59339.0,0.1019009]
[1725073578181,5.65381508,59340.0,59339.0,0.1029009]
[1725073578360,5.65381508,59340.0,59339.0,0.1019009]
[1725073578600,5.66181508,59340.0,59339.0,0.1029009]
[1725073579230,5.65381508,59340.0,59339.0,0.1019009]
[1725073579461,5.67173113,59340.0,59339.0,0.1029009]
[1725073579893,5.55376713,59340.0,59339.0,0.1029009]
[1725073580304,5.67173113,59340.0,59339.0,0.1029009]
[1725073598625,5.61735577,59340.0,59339.0,0.1029009]
[1725073602897,5.61817377,59340.0,59339.0,0.1029009]
[1725073609747,5.43662113,59340.0,59339.0,0.1029009]
[1725073610072,5.67254913,59340.0,59339.0,0.1029009]
[1725073613058,2.70499773,59340.0,59339.0,0.2252009]
[1725073613285,2.44966213,59340.0,59339.0,0.2252009]
[1725073615702,2.43666213,59340.0,59339.0,0.2252009]
[1725073616349,2.67259013,59340.0,59339.0,0.2252009]
[1725073622303,1.06259013,59340.0,59339.0,0.2252009]
[1725073622513,5.41362113,59340.0,59339.0,0.2252009]
[1725073627851,5.23704432,59340.0,59339.0,0.2252009]
[1725073628256,5.26348708,59340.0,59339.0,0.2252009]
[1725073630182,5.36348708,59340.0,59339.0,0.2252009]
[1725073630828,5.37348411,59340.0,59339.0,0.2252009]
[1725073634377,5.37348411,59340.0,59339.0,0.1252009]
[1725073642776,1.02245311,59340.0,59339.0,0.1252009]
[1725073642972,1.02245311,59340.0,59339.0,0.13612884]
[1725073643320,5.37348411,59340.0,59339.0,0.1252009]
[1725073648970,5.37348411,59340.0,59333.0,0.1]
[1725073648971,0.117976,59334.0,59333.0,0.1]
[1725073649177,3.7655444,59334.0,59333.0,0.1]
[1725073649385,2.7004964,59334.0,59333.0,0.1]
[1725073649601,2.3234964,59334.0,59333.0,0.226]
[1725073649772,2.36757405,59334.0,59333.0,0.226]
[1725073650405,1.65957405,59334.0,59333.0,0.25460808]
[1725073650609,1.66057405,59334.0,59333.0,0.25460808]
[1725073650782,1.66057405,59334.0,59333.0,0.26556426]
[1725073652140,1.66057405,59334.0,59333.0,0.23695618]
[1725073653380,1.66057405,59334.0,59333.0,0.226]
[1725073655866,1.67048768,59334.0,59333.0,0.226]
[1725073656333,1.06348768,59334.0,59333.0,0.226]
[1725073656758,5.65047068,59334.0,59333.0,0.226]
[1725073656961,5.65047068,59334.0,59333.0,0.1]
[1725073661637,5.65047068,59334.0,59333.0,0.1008998]
[1725073669244,1.29943968,59334.0,59333.0,0.1008998]
[1725073669988,5.65047068,59334.0,59333.0,0.1008998]
[1725073670933,5.90942268,59334.0,59333.0,0.1008998]
[1725073674058,5.91024068,59334.0,59333.0,0.0008998]
[1725073682696,5.93898,59334.0,59333.0,0.0008998]
[1725073683531,5.91024068,59334.0,59333.0,0.0008998]
[1725073683745,5.91021217,59334.0,59333.0,0.0008998]
[1725073683980,5.90821217,59334.0,59333.0,0.0008998]
[1725073684189,1.55718117,59334.0,59333.0,0.0008998]
[1725073684342,5.90821217,59334.0,59333.0,0.0008998]
[1725073686234,5.91021217,59334.0,59333.0,0.0008998]
[1725073691072,6.07876381,59334.0,59333.0,0.0008998]
[1725073691358,0.117992,59326.0,59325.0,0.1256]
[1725073691588,0.6726244,59326.0,59325.0,0.1256]
[1725073691765,1.0316084,59326.0,59325.0,0.13488582]
[1725073691990,5.40027243,59326.0,59325.0,0.1256]
[1725073692197,5.66270637,59326.0,59325.0,0.1256]
[1725073693053,4.86567537,59326.0,59325.0,0.1256]
[1725073693272,1.50601097,59326.0,59325.0,0.1256]
[1725073693533,1.41767537,59326.0,59325.0,0.1256]
[1725073693747,1.42167537,59326.0,59325.0,0.1256]
[1725073694168,1.41767537,59326.0,59325.0,0.1256]
[1725073694374,1.42367537,59326.0,59325.0,0.1266]
[1725073694589,1.42167537,59326.0,59325.0,0.1256]
[1725073694825,1.42167537,59326.0,59325.0,0.1266]
[1725073695046,1.42767537,59326.0,59325.0,0.1266]
[1725073697512,1.42767537,59326.0,59325.0,0.1274998]
[1725073699021,1.42167537,59326.0,59325.0,0.1264998]
[1725073699430,1.42767537,59326.0,59325.0,0.1274998]
[1725073699633,1.42367537,59326.0,59325.0,0.1274998]
[1725073700070,1.42767537,59326.0,59325.0,0.1274998]
[1725073700471,1.42367537,59326.0,59325.0,0.1274998]
[1725073700894,1.41767537,59326.0,59325.0,0.1274998]
[1725073703323,1.41767537,59326.0,59325.0,0.1264998]
[1725073703902,1.41867537,59326.0,59325.0,0.1264998]
[1725073704178,1.30068337,59326.0,59325.0,0.1264998]
[1725073704387,1.41867537,59326.0,59325.0,0.1264998]
[1725073704801,1.41767537,59326.0,59325.0,0.1274998]
[1725073712731,1.28867537,59326.0,59325.0,0.0018998]
[1725073712947,5.63970637,59326.0,59325.0,0.0018998]
[1725073715206,5.40372237,59326.0,59325.0,0.0018998]
[1725073715814,5.63970637,59326.0,59325.0,0.0018998]
[1725073717074,5.63970637,59326.0,59325.0,0.0008998]
[1725073717303,5.64270637,59326.0,59325.0,0.0008998]
[1725073717520,5.64770637,59326.0,59325.0,0.0008998]
[1725073718065,5.65270637,59326.0,59325.0,0.0008998]
[1725073719362,5.64970637,59326.0,59325.0,0.0008998]
[1725073719569,5.65270637,59326.0,59325.0,0.0008998]
[1725073720932,5.63970637,59326.0,59325.0,0.0008998]
[1725073721348,5.64470637,59326.0,59325.0,0.0008998]
[1725073723219,5.64552537,59326.0,59325.0,0.0008998]
[1725073726694,5.64349658,59326.0,59325.0,0.0008998]
[1725073726926,1.29246558,59326.0,59325.0,0.0008998]
[1725073727392,5.64349658,59326.0,59325.0,0.0008998]
[1725073728449,3.06881718,59326.0,59325.0,0.13039958]
[1725073728656,3.06548158,59326.0,59325.0,0.13039958]
[1725073728856,2.56548158,59326.0,59325.0,0.13039958]
[1725073729070,2.54348158,59326.0,59325.0,0.13039958]
[1725073729282,2.35548158,59326.0,59325.0,0.13039958]
[1725073729490,2.35548158,59326.0,59325.0,0.1176998]
[1725073732854,2.35548158,59326.0,59325.0,0.16839398]
[1725073733683,2.35548158,59326.0,59325.0,0.1176998]
[1725073733896,2.35548158,59326.0,59325.0,0.16839398]
[1725073734525,2.35548158,59326.0,59325.0,0.1176998]
[1725073735142,2.35548158,59326.0,59325.0,0.16839398]
[1725073735356,2.35548158,59326.0,59325.0,0.1176998]
[1725073739864,1.05648158,59326.0,59325.0,0.1176998]
[1725073740071,2.86448158,59326.0,59325.0,0.1176998]
[1725073740291,2.86448158,59326.0,59325.0,0.12698562]
[1725073740490,2.86448158,59326.0,59325.0,0.1176998]
[1725073741142,2.71048158,59326.0,59325.0,0.1176998]
[1725073742329,2.5534274,59326.0,59325.0,0.1176998]
[1725073742543,2.57987696,59326.0,59325.0,0.1176998]
[1725073742989,2.57987696,59326.0,59325.0,0.14036958]
[1725073743443,2.57987696,59326.0,59325.0,0.1176998]
[1725073744615,2.67987696,59326.0,59325.0,0.1176998]
[1725073746056,2.67987696,59326.0,59325.0,0.0008998]
[1725073748170,2.91586096,59326.0,59325.0,0.0008998]
[1725073748843,2.67987696,59326.0,59325.0,0.1185998]
[1725073751520,5.39190796,59326.0,59325.0,0.1185998]
[1725073755025,4.11921256,59326.0,59325.0,0.1185998]
[1725073755231,3.74187696,59326.0,59325.0,0.16929894]
[1725073756052,3.74187696,59326.0,59325.0,0.1185998]
[1725073756053,3.35087696,59326.0,59325.0,0.1185998]
[1725073758235,3.29787696,59326.0,59325.0,0.1185998]
[1725073758486,2.37124456,59326.0,59325.0,0.1185998]
[1725073758712,2.37124456,59326.0,59325.0,0.52857239]
[1725073758713,0.25026056,59326.0,59325.0,0.52857239]
[1725073758927,0.38624456,59326.0,59325.0,0.52857239]
[1725073759147,0.38624456,59326.0,59325.0,0.63964776]
[1725073759365,0.38624456,59326.0,59325.0,0.53827301]
[1725073759573,0.38624456,59326.0,59325.0,0.63962557]
[1725073760003,0.38424456,59326.0,59325.0,0.63962557]
[1725073760240,0.48124456,59326.0,59325.0,0.63962557]
[1725073760458,0.48224456,59326.0,59325.0,0.54627301]
[1725073760671,0.24626056,59326.0,59325.0,0.64762557]
[1725073760890,0.12826856,59326.0,59325.0,0.76561957]
[1725073761113,0.12826856,59326.0,59325.0,0.66426701]
[1725073761329,0.02826856,59326.0,59325.0,0.66426701]
[1725073761560,0.02926856,59326.0,59325.0,0.77358193]
[1725073762434,0.02926856,59326.0,59325.0,0.65558793]
[1725073762665,0.11193296,59326.0,59325.0,0.65558793]
[1725073762883,0.21193296,59326.0,59325.0,0.65558793]
[1725073763557,0.21193296,59326.0,59325.0,0.55427301]
[1725073765529,0.21093296,59326.0,59325.0,0.62222202]
[1725073765737,0.21093296,59326.0,59325.0,0.51883979]
[1725073765738,0.21193296,59326.0,59325.0,0.51883979]
[1725073766366,0.20993296,59326.0,59325.0,0.50283979]
[1725073766803,0.21093296,59326.0,59325.0,0.51583979]
[1725073767044,0.20993296,59326.0,59325.0,0.50283979]
[1725073767260,0.20993296,59326.0,59325.0,0.51683979]
[1725073767497,0.21093296,59326.0,59325.0,0.59277715]
[1725073767725,0.21193296,59326.0,59325.0,0.60677715]
[1725073768426,0.21193296,59326.0,59325.0,0.60677406]
[1725073770085,0.32992496,59326.0,59325.0,0.60677406]
[1725073770401,0.21193296,59326.0,59325.0,0.60677406]
[1725073772794,0.32992496,59326.0,59325.0,0.60677406]